Cogmind - Beta 10.2 @@@ ROGUE MODE // 2021.08.16 @ 14:19:32 Player: Gilgameshx13 Result: Destroyed by S-27 Virus with Autogun Performance ------------- Evolutions (4) 2000 Regions Visited (6) 1200 Robots Destroyed (11) 55 Value Destroyed (324) 324 Prototype IDs (2) 40 Alien Tech Used (0) 0 Bonus (25) 25 TOTAL SCORE: 3644 Bonus ------- Follower Combat Kills 25 Cogmind --------- Core Integrity 0/850 Matter 139/300 Energy 160/160 System Corruption 0% Temperature Cool (0) Movement Hovering (110) Ox1 Location -6/Factory Parts ------- > --- POWER (1) -------- Light Fission Core > --- PROPULSION (4) --- Gravmag Array > --- UTILITY (8) ------ High-capacity Storage Unit Transmission Jammer Experimental Utility Shielding Experimental Utility Shielding > --- WEAPON (2) ------- Improved Spread Laser > --- INVENTORY (12) --- Light Nuclear Core Peak State ------------ > --- POWER ------------ Light Fission Core > --- PROPULSION ------- Gravmag Array > --- UTILITY ---------- High-capacity Storage Unit Transmission Jammer Experimental Utility Shielding Experimental Utility Shielding > --- WEAPON ----------- Improved Spread Laser > --- INVENTORY -------- Light Nuclear Core [Rating: 36] Favorites ----------- Power Deuterium Engine Engine Deuterium Engine Power Core Light Fission Core Propulsion Wheel Leg Aluminum Leg Wheel Wheel Hover Unit Airjet Utility High-capacity Storage Unit Device Improved ECM Suite Storage High-capacity Storage Unit Hackware Hacking Suite Protection Light Armor Plating Weapon Assault Rifle Energy Gun Medium Laser Ballistic Gun Assault Rifle Ballistic Cannon Flak Cannon Build | -11 -10 -10 -9 -8 -7 -6 ------- Run | Scr Mat Min Mat Mat Fac Fac Slots Evolved 8 | . . . 2 2 2 2 Power . | . . . . . . . Propulsion 2 | . . . . 2 . . Utility 6 | . . . 2 . 2 2 Weapon . | . . . . . . . Parts Attached 33 | 7 . 3 . 2 7 14 Power 5 | 1 . 1 . . 1 2 Engine 2 | 1 . 1 . . . . Core 3 | . . . . . 1 2 Reactor . | . . . . . . . Propulsion 8 | 2 . . . . 2 4 Treads . | . . . . . . . Leg 3 | . . . . . . 3 Wheel 3 | 2 . . . . 1 . Hover 2 | . . . . . 1 1 Flight . | . . . . . . . Utility 11 | 1 . 1 . 2 2 5 Device 4 | . . . . 1 . 3 Storage 2 | 1 . . . 1 . . Processor . | . . . . . . . Hackware 1 | . . . . . 1 . Protection 4 | . . 1 . . 1 2 Artifact . | . . . . . . . Weapon 9 | 3 . 1 . . 2 3 Energy Gun 5 | 2 . . . . 1 2 Energy Cannon . | . . . . . . . Ballistic Gun 3 | 1 . . . . 1 1 Ballistic Cannon 1 | . . 1 . . . . Launcher . | . . . . . . . Special Weapon . | . . . . . . . Impact Weapon . | . . . . . . . Slashing Weapon . | . . . . . . . Piercing Weapon . | . . . . . . . Special Melee Weapon . | . . . . . . . Unidentified Prototypes 2 | . . . . . . 2 Parts Lost 21 | . . . . . 11 10 Power 3 | . . . . . 2 1 Propulsion 7 | . . . . . 2 5 Utility 5 | . . . . . 3 2 Weapon 6 | . . . . . 4 2 Highest Loss Streak 10 | . . . . . 10 8 Average Slot Usage (%) 58 | . 85 92 77 71 49 25 Engine 6 | . 14 14 11 9 2 . Leg 1 | . . . . . . 6 Wheel 14 | . 28 28 22 18 12 1 Hover 1 | . . . . . 2 3 Device 3 | . . . . 8 4 3 Storage 9 | . 14 14 11 9 7 6 Protection 4 | . . 7 11 9 5 . Energy Gun 2 | . 14 7 . . 1 . Ballistic Gun 7 | . 14 14 11 9 5 . Ballistic Cannon 4 | . . 7 11 9 1 . Naked Turns . | . . . . . . . Heaviest Build 58 | 13 13 24 24 54 58 56 Greatest Support 30 | 20 20 20 20 20 30 30 Greatest Overweight (x) 15 | 2 . 1 1 2 4 15 Average Overweight (x) 1 | . . . 1 1 2 2 Largest Inventory Capacity 14 | 6 6 6 6 14 12 12 Average Capacity 9 | 5 6 6 6 11 12 12 Most Carried 10 | 4 4 6 6 10 9 7 Average Carried 5 | 2 3 5 6 7 6 3 Final Capacity 12 | 6 6 6 6 12 12 12 Final Carried 10 | 3 4 6 6 10 6 1 Class Distribution -------------------- 100% | Mutant Dominant Class ---------------- Mutant | -10/Materials Mutant | -10/Mines Mutant | -9/Materials Mutant | -8/Materials Mutant | -7/Factory Mutant | -6/Factory Resources | -11 -10 -10 -9 -8 -7 -6 ----------- Run | Scr Mat Min Mat Mat Fac Fac Matter Collected 433 | 270 . 45 30 44 44 . Remotely . | . . . . . . . Salvage Created 275 | . 32 . 50 99 94 . Parts 18 | . 3 . 4 5 6 . Haulers Intercepted . | . . . . . . . Recyclers Shooed . | . . . . . . . Parts Field Recycled . | . . . . . . . Retrieved Matter . | . . . . . . . Parts Self-Destructed . | . . . . . . . Prevented . | . . . . . . . Kills | -11 -10 -10 -9 -8 -7 -6 ------- Run | Scr Mat Min Mat Mat Fac Fac Combat Hostiles Destroyed 11 | . 3 . 2 2 4 . Guns 8 | . 2 . 1 1 4 . Cannons 2 | . . . 1 1 . . AOE 1 | . 1 . . . . . Classes Destroyed 3 | . 1 . 1 1 . . Swarmer 8 | . 3 . 1 . 4 . Grunt 2 | . . . 1 1 . . Sentry 1 | . . . . 1 . . Best Kill Streak 3 | . 3 . 1 1 2 . Combat Bots Only 3 | . 3 . 1 1 2 . Max Kills in Single Turn 1 | . 1 . 1 1 1 . Gunslinging . | . . . . . . . Exploded 1 | . 1 . . . . . Melee . | . . . . . . . Uniques/NPCs Destroyed . | . . . . . . . Combat | -11 -10 -10 -9 -8 -7 -6 -------- Run | Scr Mat Min Mat Mat Fac Fac Damage Taken 3087 | . 144 . 148 236 835 1724 Core 1163 | . 102 . 11 30 165 855 Absorbed by Shields 42 | . . . . . . 42 Core Remaining (%) 85 | 100 . 59 97 94 76 . Volleys Fired 33 | . 5 . 4 7 16 1 Largest 2 | . 2 . 2 2 2 2 Hottest 83 | . 70 . 64 64 83 73 Shots Fired 56 | . 10 . 8 14 22 2 Gun 44 | . 10 . 4 7 21 2 Cannon 12 | . . . 4 7 1 . Launcher . | . . . . . . . Special . | . . . . . . . Kinetic 43 | . 5 . 8 14 15 1 Thermal 13 | . 5 . . . 7 1 Explosive . | . . . . . . . Electromagnetic . | . . . . . . . Robot Hit Streak 5 | . 2 . 4 3 5 1 Robot Miss Streak 6 | . 3 . 6 5 5 1 Penetration Max . | . . . . . . . Secondary Targets 1 | . 1 . . . . . Max Gunslinging Chain 1 | . 1 . . . . . Shots Hit Robots 32 | . 4 . 5 10 12 1 Core Hits 23 | . 2 . 4 9 8 . Critical Hits . | . . . . . . . Critical Kills . | . . . . . . . Critical Parts Destroyed . | . . . . . . . Melee Attacks . | . . . . . . . Impact . | . . . . . . . Slashing . | . . . . . . . Piercing . | . . . . . . . Sneak Attacks . | . . . . . . . Combat Hostiles . | . . . . . . . Follow-up Attacks . | . . . . . . . Damage Inflicted 730 | . 51 . 115 131 271 162 Guns 392 | . 51 . 48 52 241 . Cannons 160 | . . . 67 79 14 . Explosions 162 | . . . . . . 162 Melee . | . . . . . . . Ramming 16 | . . . . . 16 . Kinetic 411 | . 13 . 115 131 152 . Thermal 303 | . 38 . . . 103 162 Explosive . | . . . . . . . Electromagnetic . | . . . . . . . Impact . | . . . . . . . Slashing . | . . . . . . . Piercing . | . . . . . . . Highest Corruption 1 | . . . 1 . . . Average Corruption 1 | . . . 1 . . . Corruption Purged . | . . . . . . . Overload Shots . | . . . . . . . Overflow Damage 138 | . . . . . . 138 Projectiles . | . . . . . . . Explosions 138 | . . . . . . 138 Melee . | . . . . . . . Knockbacks 7 | . . . 3 4 . . Impact . | . . . . . . . Kinetic 6 | . . . 2 4 . . Secondary 1 | . . . 1 . . . Self-Inflicted Damage 161 | . . . . . 8 153 Shots 2 | . . . . . . 2 Rammed 2 | . . . . . 2 . Targets Rammed 2 | . . . . . 2 . Kicked . | . . . . . . . Crushed . | . . . . . . . Highest Temperature 49 | . 45 . 49 8 29 23 Average Temperature 18 | . 22 . 24 6 15 22 Received Heat Transfer 518 | . . . 42 90 72 314 Siege Activations . | . . . . . . . Robots Corrupted . | . . . . . . . Combat Hostiles . | . . . . . . . Parts Fried . | . . . . . . . Impact Corruptions . | . . . . . . . Robots Melted . | . . . . . . . Combat Hostiles . | . . . . . . . Parts Melted . | . . . . . . . Heat Transferred 433 | . 111 . . . 222 100 Parts Sabotaged . | . . . . . . . Parts Stolen . | . . . . . . . Parts Stripped . | . . . . . . . Power Chain Reactions . | . . . . . . . Missiles Intercepted . | . . . . . . . Alert | -11 -10 -10 -9 -8 -7 -6 ------- Run | Scr Mat Min Mat Mat Fac Fac Peak Influence 167 | . 85 84 86 160 92 167 Initial 72 | . . 33 16 35 72 39 Average 62 | . 47 44 43 76 64 82 Maximum Alert Level . | . . . . . . . Low Security (%) 100 | 100 100 100 100 100 100 100 Level 1 . | . . . . . . . Level 2 . | . . . . . . . Level 3 . | . . . . . . . Level 4 . | . . . . . . . Level 5 . | . . . . . . . High Security . | . . . . . . . Max Security . | . . . . . . . Squads Dispatched 3 | . . 1 . . 1 1 Investigation 1 | . . 1 . . . . Extermination . | . . . . . . . Reinforcement 2 | . . . . . 1 1 Assault . | . . . . . . . Garrison . | . . . . . . . Intercept . | . . . . . . . Construction Impeded . | . . . . . . . Haulers Reinforced . | . . . . . . . Stealth | -11 -10 -10 -9 -8 -7 -6 --------- Run | Scr Mat Min Mat Mat Fac Fac Distress Signals 4 | . 1 . 1 2 . . Communications Jammed . | . . . . . . . Distress Signals . | . . . . . . . Times Spotted 38 | . 5 . 4 11 8 10 Peak Tracking Total 6 | . 5 . 4 6 5 3 Tactical Retreats 7 | . . . 1 2 . 4 Traps | -11 -10 -10 -9 -8 -7 -6 ------- Run | Scr Mat Min Mat Mat Fac Fac Traps Triggered 2 | . . . 1 . 1 . Indirectly . | . . . . . . . Trap Hack Attempts . | . . . . . . . Triggered . | . . . . . . . Disarmed . | . . . . . . . Reprogrammed . | . . . . . . . Reused . | . . . . . . . Traps Extracted . | . . . . . . . Installed . | . . . . . . . Triggered . | . . . . . . . Machines | -11 -10 -10 -9 -8 -7 -6 ---------- Run | Scr Mat Min Mat Mat Fac Fac Machines Disabled 5 | . . . . . . 5 Max in Single Turn 5 | . . . . . . 5 Machines Sabotaged . | . . . . . . . Garrisons Compromised . | . . . . . . . Overloaded Fab Kills . | . . . . . . . Fab Network Shutdowns . | . . . . . . . Hacking | -11 -10 -10 -9 -8 -7 -6 --------- Run | Scr Mat Min Mat Mat Fac Fac Machines Accessed 1 | . . 1 . . . . Terminals . | . . . . . . . Fabricators . | . . . . . . . Repair Stations . | . . . . . . . Recycling Units . | . . . . . . . Scanalyzers . | . . . . . . . Garrison Access . | . . . . . . . Total Hacks 1 | . . 1 . . . . Successful 1 | . . 1 . . . . Failed . | . . . . . . . Catastrophic . | . . . . . . . Database Lockouts . | . . . . . . . Manual . | . . . . . . . Terminals . | . . . . . . . Fabricators . | . . . . . . . Repair Stations . | . . . . . . . Recycling Units . | . . . . . . . Scanalyzers . | . . . . . . . Garrison Access . | . . . . . . . Terminal Hacks 1 | . . 1 . . . . Open Door 1 | . . 1 . . . . Fabricator Hacks . | . . . . . . . Repair Station Hacks . | . . . . . . . Recycling Unit Hacks . | . . . . . . . Scanalyzer . | . . . . . . . Garrison Access Hacks . | . . . . . . . Unauthorized Hacks . | . . . . . . . Terminals . | . . . . . . . Fabricators . | . . . . . . . Repair Stations . | . . . . . . . Recycling Units . | . . . . . . . Scanalyzers . | . . . . . . . Garrison Access . | . . . . . . . Data Cores Recovered . | . . . . . . . Used . | . . . . . . . Hacking Detections . | . . . . . . . Full Trace Events . | . . . . . . . Feedback Events . | . . . . . . . Feedback Blocked . | . . . . . . . Robot Schematics Acquired . | . . . . . . . Robots Built . | . . . . . . . Matter . | . . . . . . . Time . | . . . . . . . Total Robot Build Rating . | . . . . . . . Part Schematics Acquired . | . . . . . . . Parts Built . | . . . . . . . Matter . | . . . . . . . Time . | . . . . . . . Total Part Build Rating . | . . . . . . . Parts Repaired . | . . . . . . . Time . | . . . . . . . Parts Recycled . | . . . . . . . Recycled Matter . | . . . . . . . Retrieved Matter . | . . . . . . . Retrieved Components . | . . . . . . . Parts Scanalyzed . | . . . . . . . Part Schematics Acquired . | . . . . . . . Parts Damaged . | . . . . . . . Bothacking | -11 -10 -10 -9 -8 -7 -6 ------------ Run | Scr Mat Min Mat Mat Fac Fac Used RIF Installer . | . . . . . . . Robots Hacked . | . . . . . . . Non-combat . | . . . . . . . Combat . | . . . . . . . Robot Hacks Applied . | . . . . . . . Relay Couplers Released . | . . . . . . . Robots Rewired . | . . . . . . . Allies Hacked . | . . . . . . . Hacks Repelled . | . . . . . . . Allies | -11 -10 -10 -9 -8 -7 -6 -------- Run | Scr Mat Min Mat Mat Fac Fac Total Allies 2 | . . 2 . . . . Largest Group 2 | . . 2 . . . . Highest-Rated Group 41 | . . 41 . . . . Highest-Rated Ally 31 | . . 31 . . . . Total Orders . | . . . . . . . Ally Attacks 10 | . . 10 . . . . Total Damage 165 | . . 165 . . . . Kills 2 | . . 2 . . . . Allies Corrupted . | . . . . . . . Allies Melted . | . . . . . . . Intel | -11 -10 -10 -9 -8 -7 -6 ------- Run | Scr Mat Min Mat Mat Fac Fac Robot Analysis Total . | . . . . . . . Derelict Logs Recovered . | . . . . . . . Drone Launches . | . . . . . . . Drone Recoveries . | . . . . . . . Exploration | -11 -10 -10 -9 -8 -7 -6 ------------- Run | Scr Mat Min Mat Mat Fac Fac Turns Passed 1076 | 67 126 82 110 237 130 324 Spaces Moved 884 | 61 138 85 109 208 76 207 Core 24 | 15 . . . . . 9 Treads . | . . . . . . . Legs 60 | . . . . . . 60 Wheels 718 | 46 138 85 109 208 76 56 Hover 82 | . . . . . . 82 Flight . | . . . . . . . Fastest Speed 50 | 50 80 80 90 90 90 110 Average Speed 103 | 80 80 84 90 99 102 144 Slowest Speed 800 | 150 80 90 90 100 120 800 Overloaded Moves . | . . . . . . . Propulsion Burnouts . | . . . . . . . Robots Hopped . | . . . . . . . Cave-ins Triggered . | . . . . . . . Exploration Rate (%) 15 | 3 33 13 16 30 3 13 Regions Visited 6 Branch Regions 1 Pre-discovered Areas . | . . . . . . . Known Exits Taken . | . . . . . . . Unknown Exits Taken 6 | 1 1 1 1 1 1 . Scrap Searched . | . . . . . . . Spaces Dug . | . . . . . . . Terrain Destroyed 61 | . . . . . . 61 Melee . | . . . . . . . Projectile . | . . . . . . . AOE 61 | . . . . . . 61 Terrain Rammed . | . . . . . . . Walls Destroyed . | . . . . . . . Machines Disabled . | . . . . . . . Actions | -11 -10 -10 -9 -8 -7 -6 --------- Run | Scr Mat Min Mat Mat Fac Fac Total 990 | 78 143 94 112 224 108 231 Wait 5 | . . . . 1 4 . Move 878 | 60 137 84 108 207 75 207 Hop . | . . . . . . . Pick Up 34 | 10 1 5 . 6 3 9 Fast Attach . | . . . . . . . Attach 30 | 6 . 1 . 2 7 14 Detach . | . . . . . . . Swap 3 | 1 . 2 . . . . Drop 5 | 1 . 2 . 1 1 . Fire 33 | . 5 . 4 7 16 1 Melee . | . . . . . . . Ram 2 | . . . . . 2 . Kick . | . . . . . . . Crush . | . . . . . . . Escape Stasis . | . . . . . . . Rewire . | . . . . . . . Trap . | . . . . . . . Miscellaneous . | . . . . . . . Route ------- -11/Scrapyard -10/Materials -10/Mines -9/Materials -8/Materials -7/Factory -6/Factory History --------- Turn | Location | Event 5 | -11/Scrapyard | Discovered new exit (range 15) 68 | -11/Scrapyard | Entered Materials 185 | -10/Materials | Discovered new exit (range 8) 194 | -10/Materials | Entered Mines 221 | -10/Mines | Met a Derelict shopkeep closing up shop 267 | -10/Mines | Discovered new exit (range 8) 276 | -10/Mines | Entered Materials 276 | -9/Materials | Evolved 2 slots: Utility x2 306 | -9/Materials | Build established: Mutant 381 | -9/Materials | Discovered new exit (range 4) 386 | -9/Materials | Entered another Materials area 386 | -8/Materials | Evolved 2 slots: Propulsion x2 615 | -8/Materials | Discovered new exit (range 8) 623 | -8/Materials | Entered Factory 623 | -7/Factory | Evolved 2 slots: Utility x2 719 | -7/Factory | Lost 10 parts (2p2n3u3w) 740 | -7/Factory | Discovered new exit (range 13) 753 | -7/Factory | Entered another Factory area 753 | -6/Factory | Evolved 2 slots: Utility x2 934 | -6/Factory | Core integrity fell below 50% 965 | -6/Factory | Lost 8 parts (1p3n2u2w) 969 | -6/Factory | Core integrity fell below 20% 1077 | -6/Factory | Destroyed by S-27 Virus with Autogun Last Messages --------------- Force Field destroyed. K-01 Serf collects debris. K-01 Serf destroyed. R-10 Processor collects Wheel. K-01 Serf collects debris. R-10 Processor collects Lgt. Ion Engine. K-01 Serf collects debris. R-10 Processor collects Wheel. R-10 Processor destroyed. K-01 Serf collects debris. Acquired Gravmag Array. K-01 Serf collects debris. Acquired Lgt. Fission Core. Slug penetrates Power Conduit. Penetrated by Slug. K-01 Serf cleans the Terminal. Acquired Prototype Energy Gun. Acquired Prototype Protection. Identified Exp. Utility Shielding. Identified Imp. Spread Laser. Map ----- +----------------------------------------------------+ | ?????????????????????????????????????????????????? | | ?????????????????????????????????????????????????? | | ?????????????????????????????????????????????????? | | ?????????????????????????????????????????????????? | | ?????????????????????????????????????????????????? | | ?????????????????????????????????????????????????? | | ?????????????????????????????????????????????????? | | ?????????????????????????????????????????????????? | | ?????????????????????????????????????????????????? | | ?????????????????????????????????????????????????? | | ???????????????????????##????????????????????????? | | ??????????????????????# ????????????????????????? | | ??????????????????????# ? ? k????????????????? | | ??????????????????????# ""G""ks s??????????????? | | ??????????????????????# " " k ??????????????? | | ??????????????????????# " " ???????????????? | | ??????????????????????# #???????????????? | | ???????????????#???+### ????????????????? | | ???????????????# ? k?????????????????? | | ???????????????# ??????????????????? | | ???????????????+ """"" !! ???????????????????? | | ???????????????# ""T"" !! ????????????????????? | | ???????????????# #????????????????????? | | ???????????????# #????????????????????? | | ?????????###+### ! #????????????????????? | | ????????# R @ #????????????????????? | | ????????? #????????????????????? | | ???????????""" [[[ ![ #????????????????????? | | ????????????T"k""" [[[ ! #????????????????????? | | ??????????? """ [[! [! #????????????????????? | | ????????# """^ #????????????????????? | | ????????# g #????????????????????? | | ????????# """ """ """ """ #????????????????????? | | ??????? / """ """ """ """ #????????????????????? | | ????????# """ """ """ """ + ???????????????????? | | ????????# k# ??????????????????? | | ????????# !# ?????????????????? | | ?????????####### h###### #? ???????????????? | | ???????????????# #?????k#? ??????????????? | | ???????????????# #????# #?? ???????????????? | | ???????????????# #????# #???#?????????????? ! | | ???????????????# #????# ##############""" | | ???????????????# #????+ #""" | | ???????????????# #????# # | | ???????????????# #????# #""" | | ???????????????# #????# #""" ? | | ???????????????# ###### #""" ??? | | ???????????????# # ????? | | ???????????????# ^ #+####### | | ???????????????# " " """ | +----------------------------------------------------+ Best States ------------- Heat Dissipation 37 Energy Generation 18 Energy Capacity 275 Matter Stores 300 Matter Capacity 300 Sight Range 16 Terrain Scan Density 10 ECM Strength 2 Jamming Range 8 Armor Coverage 300 Resistance: TH 10 Evasion (%) 50 Offensive Hacking 10 Item Schematics ----------------- None Robot Schematics ------------------ None Fabricated ------------ Nothing Alien Tech Used ----------------- None Achievements -------------- None Challenges ------------ None Game ------ Seed CoilPlasmaBroadsword Manual? 0 Play Time 00:14:38 Cumulative 18.2 hours Start 2021.08.16 @ 14:08:02 End 2021.08.16 @ 14:19:32 Sessions 1 Manual Loads 0 Difficulty Rogue Special Mode None Game No. 44 Rogue 24 Adventurer 20 Explorer 0 Win Type - Total 1 Types 1/0/0/0/0/0/0/0/0 Lore% 18 Gallery% 40 Achievement% 27 Wizard Run 0 Options --------- ASCII 0 Keyboard 0 Movement Arrows Keybinds 0 Fullscreen 1 Font 18/SmallcapsGlow Map View 76x50 Tactical HUD 0 Map Filters NONE Filters NONE Steam 1 RUN: ee7ab0e4-823b-4028-8a6b-d2e0d587b4fe